fUSD/lending_fUSD_20250609
["ID","MTS","AMOUNT","RATE_DAILY","PERIOD"]
[365153811,1749499152417,17947.02512821,3.86e-06,30]
[365153812,1749499152441,17947.02512821,3.86e-06,30]
[365153813,1749499152464,17947.02512821,3.86e-06,30]
[365153814,1749499152488,17947.02512821,3.86e-06,30]
[365153815,1749499153149,17947.02512821,3.86e-06,30]
[365153816,1749499153233,9358.93003275,3.86e-06,30]
[365153817,1749499153309,8588.09509546,3.86e-06,30]
[365153818,1749499153338,17947.02512821,3.86e-06,30]
[365153819,1749499153363,17947.02512821,3.86e-06,30]
[365153820,1749499153387,17947.02512821,3.86e-06,30]
[365153821,1749499153414,17947.02512821,3.86e-06,30]
[365153822,1749499153438,17947.02512821,3.86e-06,30]
[365153823,1749499153461,17947.02512821,3.86e-06,30]
[365153824,1749499153485,17947.02512821,3.86e-06,30]
[365153825,1749499153508,17947.02512821,3.86e-06,30]
[365153826,1749499153532,17947.02512821,3.86e-06,30]
[365153827,1749499153556,17947.02512821,3.86e-06,30]
[365153828,1749499153579,17947.02512821,3.86e-06,30]
[365153829,1749499153601,17947.02512821,3.86e-06,30]
[365153830,1749499153624,17947.02512821,3.86e-06,30]
[365153831,1749499153647,17947.02512821,3.86e-06,30]
[365153832,1749499153670,17947.02512821,3.86e-06,30]
[365153833,1749499153693,17947.02512821,3.86e-06,30]
[365153834,1749499153716,17947.02512821,3.86e-06,30]
[365153835,1749499153739,9852.80173196,3.86e-06,30]
[365153836,1749499153797,8094.22339625,3.85e-06,30]
[365153837,1749499153819,17947.02512821,3.85e-06,30]
[365153838,1749499153848,297499.07548253,3.85e-06,30]
[365153839,1749499153913,323540.32400699,3.86e-06,30]
[365153840,1749499208479,5692.681046,7.945e-05,2]
[365153841,1749499211752,204.0,0.00017476,2]
[365153842,1749499242293,1128.81,0.00016252,2]
[365153843,1749499314771,201.51721791,0.00017918,2]
[365153844,1749499452201,204.0,0.00017847,2]
[365153845,1749499481994,200.0,0.00017847,2]
[365153846,1749499511316,200.0,0.00017847,2]
[365153847,1749499547917,302.0,0.00017918,2]
[365153848,1749499566654,-150.0,0.00018075,2]
[365153849,1749499566679,-1200.0,0.00018083,2]
[365153850,1749499576705,-18650.0,0.00018084,2]
[365153852,1749499714899,-5250.0,0.00018084,2]
[365153853,1749499714927,-1000.0,0.00018085,2]
[365153854,1749499714952,-300.0,0.00018111,2]
[365153855,1749499714978,-300.0,0.00018132,2]
[365153856,1749499715004,-3150.0,0.00018133,2]
[365153864,1749499832032,-151.0,0.00018085,2]
[365153865,1749499832043,-300.0,0.00018109,2]
[365153866,1749499832053,-300.0,0.00018132,2]
[365153867,1749499832063,-1200.0,0.00018132,2]
[365153868,1749499832072,-3625.14,0.00018133,2]
[365153869,1749499832082,-2627.1,0.00018133,2]
[365153870,1749499832091,-1555.44,0.00018138,2]
[365153871,1749499832102,-300.0,0.00018145,2]
[365153872,1749499832111,-204.0,0.00018207,2]
[365153873,1749499832123,-12079.66,0.00018278,2]
[365153874,1749499832132,-247.98,0.00018356,2]
[365153875,1749499832142,-1128.81,0.00018516,2]
[365153876,1749499832152,-300.0,0.000186,6]
[365153877,1749499832161,-600.0,0.000187,6]
[365153878,1749499832171,-900.0,0.000188,6]
[365153879,1749499832181,-514.362714,0.00018815,2]
[365153880,1749499832190,-164.12,0.00018816,2]
[365153881,1749499832200,-500.0,0.00018849,2]
[365153882,1749499832210,-170.66,0.000189,2]
[365153883,1749499832219,-458.35,0.000189,2]
[365153884,1749499832229,-1200.0,0.000189,6]
[365153885,1749499832238,-212.70737818,0.000189,2]
[365153886,1749499832249,-1000.0,0.000189,2]
[365153887,1749499832258,-212.70737816,0.00018934,2]
[365153888,1749499832268,-204.09,0.0001894,2]
[365153889,1749499832277,-212.70737816,0.00018969,2]
[365153890,1749499832286,-212.70737816,0.00019003,2]
[365153891,1749499832296,-500.0,0.00019025,2]
[365153892,1749499832306,-200.0,0.00019025,2]
[365153893,1749499832316,-212.70737816,0.00019038,2]
[365153894,1749499832326,-204.08,0.00019042,2]
[365153895,1749499832336,-1957.856,0.00019047,2]
[365153896,1749499832345,-207.4,0.00019047,2]
[365153897,1749499832355,-732.84263284,0.00019072,2]
[365153898,1749499832365,-212.70737816,0.00019072,2]
[365153899,1749499832374,-300.1036,0.00019073,2]
[365153900,1749499832383,-1000.0,0.00019073,2]
[365153901,1749499832393,-252.7375,0.00019073,2]
[365153902,1749499832403,-1725.34962348,0.00019073,2]
[365153903,1749499832412,-6443.7957,0.00019074,2]
[365153904,1749499832422,-2500.0,0.00019074,2]
[365153905,1749499832431,-4691.88231925,0.00019074,2]
[365153906,1749499832441,-384.86974952,0.00019078,2]
[365153907,1749499832451,-1725.34962344,0.00019091,2]
[365153909,1749499832460,-60318.31655245,0.00019094,2]
[365153911,1749499832471,-25727.71415068,0.00019098,2]
[365153913,1749499832480,-1276.478,0.000191,2]
[365153915,1749499832490,-1000.0,0.000191,2]
[365153917,1749499832500,-204.08,0.000191,2]
[365153919,1749499832509,-2030.296672,0.00019102,2]
[365153921,1749499832521,-500.0,0.00019103,2]
[365153923,1749499832531,-500.0,0.00019103,2]
[365153925,1749499832541,-500.0,0.00019103,2]
[365153927,1749499832551,-500.0,0.00019103,2]
[365153929,1749499832561,-500.0,0.00019103,2]
[365153931,1749499832570,-500.0,0.00019103,2]
[365153933,1749499832580,-396.33112784,0.00019103,2]
[365153935,1749499832589,-300.0,0.00019103,2]
[365153937,1749499832602,-33451.87753524,0.00019104,2]
[365153939,1749499832613,-212.70737816,0.00019107,2]
[365153941,1749499832623,-1725.34962344,0.00019108,2]
[365153943,1749499832632,-22303.79692545,0.00019113,2]
[365153947,1749499832656,-64039.39577478,0.00019113,2]
[365153950,1749499832676,-3260.25498,0.00019113,2]
[365153952,1749499832691,-819.17720897,0.00019113,2]
[365153954,1749499832703,-1279.28235153,0.00019113,2]
[365153957,1749499832714,-1200.0,0.00019113,2]
[365153959,1749499832730,-2240.9692088,0.00019113,2]
[365153960,1749499832741,-480.0,0.00019113,2]
[365153975,1749499837892,-537.13002854,0.00019113,2]
[365153977,1749499837904,-8722.35414,0.00019113,2]
[365153978,1749499837918,-2949.2,0.00019113,2]
[365153987,1749499838058,-5289.31446005,0.00019113,2]
[365153994,1749499838163,-3412.49,0.00019113,2]
[365153995,1749499838269,-4597.2,0.00019113,2]
[365154181,1749499840296,-21109.0,0.00019113,2]
[365154185,1749499840328,-76064.84192514,0.00019113,2]
[365154199,1749499840452,-16289.89929412,0.00019113,2]
[365154202,1749499840467,-6245.26392316,0.00019113,2]
[365154205,1749499840488,-46751.82889677,0.00019113,2]
[365154207,1749499840497,-25727.71415068,0.00019114,2]
[365154210,1749499840507,-4586.0114721,0.00019118,2]
[365154213,1749499840522,-4440.89041403,0.00019118,2]
[365154215,1749499840532,-1725.34962344,0.00019126,2]
[365154217,1749499840541,-108.25971439,0.00019135,2]
[365154219,1749499840553,-624.58291845,0.00019135,2]
[365154221,1749499840563,-2375.41708155,0.00019136,2]
[365154225,1749499840594,-781.91070013,0.00019136,2]
[365154227,1749499840606,-960.44198367,0.00019136,2]
[365154230,1749499840619,-5129.38439656,0.00019136,2]
[365154233,1749499840639,-5745.76945647,0.00019136,2]
[365154469,1749499843008,-202.0,0.00018207,2]
[365154471,1749499843018,-106.319,0.00019136,2]
[365154492,1749499843219,-22630.96812,0.00019136,2]
[365154504,1749499843326,-11837.07907005,0.00019136,2]
[365154511,1749499843383,-10751.02674402,0.00019136,2]
[365154513,1749499843393,-9026.90188613,0.00019137,2]
[365154515,1749499843403,-25727.71415068,0.00019139,2]
[365154517,1749499843412,-212.70737816,0.00019141,2]
[365154519,1749499843422,-1725.34962344,0.00019143,2]
[365154521,1749499843432,-1000.0,0.00019144,2]
[365154523,1749499843441,-216.73724195,0.00019144,2]
[365154524,1749499843451,-151.0,0.00019144,2]
[365154527,1749499843461,-500.0,0.00019144,2]
[365154529,1749499843471,-500.0,0.00019144,2]
[365154530,1749499843481,-500.0,0.00019144,2]
[365154532,1749499843491,-500.0,0.00019144,2]
[365154534,1749499843500,-500.0,0.00019144,2]
[365154536,1749499843510,-500.0,0.00019144,2]
[365154538,1749499843522,-500.0,0.00019144,2]
[365154540,1749499843533,-500.0,0.00019144,2]
[365154542,1749499843546,-500.0,0.00019144,2]
[365154544,1749499843556,-500.0,0.00019144,2]
[365154546,1749499843567,-500.0,0.00019144,2]
[365154549,1749499843576,-375.2746503,0.00019144,2]
[365154551,1749499843586,-300.0,0.00019144,2]
[365154553,1749499843596,-300.0,0.00019144,2]
[365154555,1749499843606,-25138.94366674,0.00019145,2]
[365154557,1749499843616,-72114.05020287,0.00019148,2]
[365154560,1749499843629,-500.0,0.00019148,2]
[365154761,1749499859445,185.0,0.0002465,120]
[365154762,1749499885694,788.31907088,2.46e-05,120]
[365154763,1749499919380,1382.0,0.0002465,120]
[365154764,1749499979855,1603.0,0.0002465,120]
[365154765,1749500172047,204.0,0.00017207,2]
[365154766,1749500276009,434.09,0.00013699,2]
[365154768,1749500289787,1117.83,0.00016227,2]
[365154769,1749500472062,165.55528952,0.00016146,2]
[365154770,1749500531782,204.0,0.00017504,2]
[365154771,1749500727942,-167.75,0.00018077,2]
[365154772,1749500727971,-1200.0,0.00018107,2]
[365154773,1749500727998,-300.0,0.00018107,2]
[365154774,1749500728025,-17432.25,0.00018108,2]
[365154775,1749500852185,270.56769228,0.00018,2]
[365154776,1749500856102,1029.19352,0.00018,2]
[365154777,1749500880108,721.0,0.0002465,120]
[365154778,1749500892098,204.0,0.00017832,2]
[365154779,1749500902443,5464.7634982,0.00018,2]
[365154780,1749500903293,-223.80805166,0.00018,2]
[365154781,1749500911662,-202.57,0.00018,2]
[365154782,1749500922146,200.0,0.00017832,2]
[365154783,1749500927184,-207.19194834,0.00018,2]
[365154784,1749500940531,662.0,0.0002465,120]
[365154785,1749500941688,-287.627789,0.00018,2]
[365154786,1749500956572,-257.2822585,0.00018,2]
[365154787,1749500962028,633.57,0.00017864,2]
[365154788,1749500972873,-182.3077415,0.00018,2]
[365154793,1749500999673,500.0,0.0002465,120]
[365154806,1749501037279,-3174.4487128,0.00018,2]
[365154807,1749501037289,-1200.0,0.00018107,2]
[365154808,1749501037299,-6467.75,0.00018108,2]
[365154809,1749501037308,-300.0,0.00018116,2]
[365154810,1749501037317,-300.0,0.00018123,2]
[365154811,1749501037327,-300.0,0.00018124,2]
[365154812,1749501037336,-782.64,0.0001814,2]
[365154813,1749501037346,-1000.0,0.0001814,2]
[365154814,1749501037356,-226.11,0.0001814,2]
[365154815,1749501037366,-172.58,0.00018145,2]
[365154816,1749501037375,-2751.0,0.0001816,2]
[365154817,1749501037386,-396.69,0.00018176,2]
[365154818,1749501037397,-200.0,0.0001818,2]
[365154819,1749501037407,-4163.4143552,0.000182,2]
[365154829,1749501038103,-566.0,0.000182,2]
[365154830,1749501038115,-5270.5856448,0.000182,2]
[365154831,1749501038124,-1957.856,0.00018217,2]
[365154832,1749501038134,-207.4,0.00018217,2]
[365154833,1749501038144,-2030.296672,0.00018272,2]
[365154834,1749501038154,-10000.0,0.000183,2]
[365154835,1749501038164,-2105.41764886,0.00018327,2]
[365154836,1749501038174,-2183.31810187,0.00018382,2]
[365154837,1749501038183,-850.0,0.00018399,2]
[365154838,1749501038192,-10000.0,0.000184,2]
[365154839,1749501038202,-2264.10087164,0.00018437,2]
[365154840,1749501038212,-1117.83,0.00018491,2]
[365154841,1749501038222,-2347.87260389,0.00018492,2]
[365154842,1749501038232,-6078.15934613,0.000185,2]
[365154843,1749501038245,-3921.84065387,0.000185,2]
[365154844,1749501038254,-2434.74389024,0.00018547,2]
[365154845,1749501038264,-452.73,0.000186,2]
[365154846,1749501038274,-7797.54516797,0.000186,2]
[365154847,1749501038285,-507.31920369,0.000186,2]
[365154848,1749501038296,-1933.27872033,0.000186,2]
[365154849,1749501038305,-826.29380374,0.00018602,2]
[365154850,1749501038324,-1698.53561043,0.00018602,2]
[365154851,1749501038334,-200.0,0.00018656,2]
[365154852,1749501038343,-421.8563682,0.00018656,2]
[365154853,1749501038352,-1686.1075466,0.00018657,2]
[365154854,1749501038416,-932.1405559,0.00018657,2]
[365154855,1749501038426,-171.36,0.00018697,2]
[365154856,1749501038435,-1163.41,0.000187,2]
[365154857,1749501038444,-1163.41,0.000187,2]
[365154858,1749501038454,-2715.12328229,0.00018712,2]
[365154859,1749501038464,-1842.0,0.00018717,2]
[365154860,1749501038475,-2815.58284374,0.00018767,2]
[365154861,1749501038484,-505.873447,0.00018794,2]
[365154863,1749501038495,-10000.0,0.000188,2]
[365154864,1749501038504,-2919.75940895,0.00018822,2]
[365154867,1749501038515,-429.35596216,0.00018822,2]
[365154869,1749501038524,-3027.79050709,0.00018877,2]
[365154871,1749501038534,-1000.0,0.000189,2]
[365154873,1749501038544,-429.35596216,0.00018904,2]
[365154874,1749501038553,-3139.81875585,0.00018932,2]
[365154877,1749501038564,-429.35596216,0.00018959,2]
[365154879,1749501038573,-794.0797747,0.00018987,2]
[365155036,1749501040223,-2461.91227511,0.00018987,2]
[365155038,1749501040234,-151.0,0.00018989,2]
[365155040,1749501040244,-281.75575539,0.00018989,2]
[365155042,1749501040253,-500.0,0.00018989,2]
[365155044,1749501040263,-668.65185757,0.00018989,2]
[365155046,1749501040273,-518.5,0.00018989,2]
[365155048,1749501040283,-537.6845,0.00018989,2]
[365155050,1749501040293,-557.5788265,0.00018989,2]
[365155052,1749501040303,-578.20924308,0.00018989,2]
[365155053,1749501040312,-599.60298507,0.00018989,2]
[365155055,1749501040321,-621.78829552,0.00018989,2]
[365155057,1749501040330,-642.33274849,0.00018989,2]
[365155059,1749501040340,-17751.62120629,0.0001899,2]
[365155061,1749501040349,-85.00536196,0.00018999,2]
[365155072,1749501040464,-146.73116343,0.00018999,2]
[365155074,1749501040474,-250.0,0.00019,2]
[365155076,1749501040484,-8552.41227265,0.00019,2]
[365155079,1749501040500,-20967.3428833,0.00019,2]
[365155081,1749501040510,-1163.41,0.00019,2]
[365155082,1749501040520,-1163.41,0.00019,2]
[365155084,1749501040530,-163.25,0.00019,2]
[365155086,1749501040539,-500.0,0.00019025,2]
[365155088,1749501040549,-200.0,0.00019025,2]
[365155090,1749501040559,-429.35596216,0.00019041,2]
[365155092,1749501040570,-3376.46375566,0.00019042,2]
[365155093,1749501040579,-4222.69408728,0.0001907,2]
[365155095,1749501040589,-1301.71689281,0.0001907,2]
[365155097,1749501040599,-3954.7628,0.0001907,2]
[365155099,1749501040609,-616.7316,0.0001907,2]
[365155101,1749501040619,-161.75364874,0.00019073,2]
[365155103,1749501040629,-352.4349,0.00019074,2]
[365155105,1749501040639,-161.63188426,0.00019078,2]
[365155107,1749501040649,-769.739499,0.00019078,2]
[365155109,1749501040659,-1301.71689268,0.00019081,2]
[365155111,1749501040669,-1301.71689268,0.00019093,2]
[365155113,1749501040679,-3501.39291462,0.00019097,2]
[365155114,1749501040688,-2325.96,0.000191,2]
[365155116,1749501040698,-354.34,0.000191,2]
[365155118,1749501040707,-1163.41,0.000191,2]
[365155120,1749501040717,-1163.41,0.000191,2]
[365155122,1749501040727,-1163.41,0.000191,2]
[365155124,1749501040737,-1163.41,0.000191,2]
[365155126,1749501040747,-1163.41,0.000191,2]
[365155128,1749501040756,-957.44821431,0.000191,2]
[365155132,1749501040797,-205.96178569,0.000191,2]
[365155134,1749501040808,-10000.0,0.000191,2]
[365155136,1749501040818,-1301.71689268,0.00019104,2]
[365155138,1749501040828,-1301.71689268,0.00019116,2]
[365155139,1749501040836,-429.35596216,0.00019123,2]
[365155141,1749501040846,-1301.71689268,0.00019127,2]
[365155142,1749501040855,-1301.71689268,0.00019139,2]
[365155144,1749501040865,-6367.2462974,0.00019139,2]
[365155146,1749501040875,-50870.21547763,0.00019148,2]
[365155150,1749501040915,-1024.56342004,0.00019148,2]
[365155220,1749501041771,200.0,0.00017832,2]
[365155388,1749501043393,-359.4,0.00019148,2]
[365155639,1749501046221,-2581.19999998,0.00019148,2]
[365155640,1749501046233,-2661.3383606,0.00019148,2]
[365155641,1749501046366,-5054.79999998,0.00019148,2]
[365155654,1749501059932,415.0,0.0002465,120]
[365155655,1749501119468,620.0,0.0002465,120]
[365155656,1749501161346,205.0,0.00017832,2]
[365155657,1749501179943,1035.0,0.0002465,120]
[365155658,1749501285178,1077.86,0.00016219,2]
[365155659,1749501290495,430.58,0.00013699,2]
[365155661,1749501541552,183.04,0.00016712,2]
[365155662,1749501611744,204.0,0.00017192,2]
[365155663,1749501674152,2400.0,0.0001178,2]
[365155664,1749501675701,2400.0,0.0001315,2]
[365155665,1749501677349,2400.0,0.0001452,2]
[365155666,1749501678965,2400.0,0.0001589,2]
[365155667,1749501741905,500.0,0.00016164,2]
[365155668,1749501821876,11378.14534313,0.00024658,120]
[365155669,1749501971636,204.0,0.00017619,2]
[365155670,1749501995952,114157.13194169,0.000246,120]
[365155671,1749502001877,200.0,0.00017619,2]
[365155672,1749502010198,1177.46482843,0.000246,120]
[365155673,1749502031335,200.0,0.00017619,2]
[365155674,1749502031866,151.0,0.00017369,2]
[365155675,1749502074849,200.0,0.00024657,120]
[365155676,1749502079480,264.0,0.0002465,120]
[365155677,1749502085446,227.0,0.00024658,120]
[365155678,1749502091184,166.7,0.00017947,2]
[365155682,1749502228826,457.81,0.00017831,2]
[365155698,1749502232275,-265.08565925,0.00018079,2]
[365155699,1749502232287,-326.05,0.00018079,2]
[365155700,1749502232298,-575.80901143,0.00018079,2]
[365155701,1749502232332,-33.05532932,0.00018079,2]
[365155702,1749502232341,-408.14139535,0.0001808,7]
[365155703,1749502232568,-78836.50330901,0.0001808,7]
[365155704,1749502232684,-464.90643457,0.0001808,7]
[365155705,1749502232696,-640.3008256,0.0001808,7]
[365155996,1749502238209,-1590.14803547,0.0001808,7]
[365155997,1749502238219,-833.29909032,0.0001808,7]
[365155998,1749502238228,-2923.02,0.00018081,2]
[365155999,1749502238238,-166.2,0.00018088,2]
[365156000,1749502238248,-1275.69,0.00018092,2]
[365156001,1749502238258,-300.0,0.00018095,2]
[365156002,1749502238268,-3443.71176914,0.00018096,2]
[365156003,1749502238320,-2300.0499699,0.00018096,2]
[365156004,1749502238332,-3026.42826096,0.00018096,2]
[365156005,1749502238342,-1000.0,0.00018102,2]
[365156006,1749502238352,-235.55,0.0001813,2]
[365156007,1749502238362,-894.02,0.00018356,2]
[365156008,1749502238371,-892.34403091,0.0001839,2]
[365156009,1749502238380,-892.34403087,0.00018433,2]
[365156010,1749502238389,-892.34403087,0.00018477,2]
[365156011,1749502238399,-72.9873014,0.00018479,2]
[365156012,1749502238478,-1884.8686986,0.00018479,2]
[365156013,1749502238488,-207.4,0.00018479,2]
[365156014,1749502238498,-1077.86,0.00018483,2]
[365156015,1749502238507,-2317.16075157,0.00018489,2]
[365156016,1749502238538,-2517.8,0.00018489,2]
[365156205,1749502240311,-1709.95758054,0.00018489,2]
[365156207,1749502240321,-600.0,0.0001849,4]
[365156209,1749502240331,-150.99,0.0001849,2]
[365156211,1749502240340,-299.99,0.0001849,4]
[365156213,1749502240350,-999.99,0.0001849,2]
[365156215,1749502240359,-2132.95,0.0001849,2]
[365156216,1749502240368,-9465.44229286,0.0001849,2]
[365156219,1749502240380,-534.54770714,0.0001849,2]
[365156221,1749502240389,-499.99,0.0001849,2]
[365156223,1749502240399,-9539.46229286,0.0001849,2]
[365156226,1749502240422,-15676.62265495,0.0001849,2]
[365156235,1749502240504,-14818.78535087,0.0001849,2]
[365156237,1749502240519,-7278.17970132,0.0001849,2]
[365156239,1749502240528,-150.99,0.0001849,2]
[365156241,1749502240537,-780.72,0.0001849,5]
[365156243,1749502240548,-892.34403087,0.0001852,2]
[365156245,1749502240559,-2030.296672,0.00018534,2]
[365156247,1749502240568,-892.34403087,0.00018564,2]
[365156249,1749502240578,-499.84498278,0.00018589,2]
[365156251,1749502240590,-2400.0,0.0001863,2]
[365156253,1749502240599,-1185.21655638,0.00018878,2]
[365156255,1749502240609,-1163.41,0.000189,2]
[365156257,1749502240619,-203.77232802,0.000189,2]
[365156259,1749502240629,-500.0,0.00018904,2]
[365156261,1749502240638,-203.772328,0.00018937,2]
[365156263,1749502240647,-151.0,0.00018949,2]
[365156265,1749502240656,-151.0,0.00018949,2]
[365156267,1749502240666,-1000.0,0.00018949,2]
[365156269,1749502240676,-500.0,0.00018949,2]
[365156271,1749502240685,-500.0,0.00018949,2]
[365156273,1749502240695,-500.0,0.00018949,2]
[365156275,1749502240704,-500.0,0.00018949,2]
[365156277,1749502240713,-500.0,0.00018949,2]
[365156279,1749502240723,-500.0,0.00018949,2]
[365156281,1749502240732,-668.65185757,0.00018949,2]
[365156283,1749502240741,-500.0,0.00018949,2]
[365156285,1749502240750,-500.0,0.00018949,2]
[365156287,1749502240759,-500.0,0.00018949,2]
[365156288,1749502240768,-500.0,0.00018949,2]
[365156289,1749502240778,-397.87158068,0.00018949,2]
[365156290,1749502240787,-151.0,0.00018949,2]
[365156291,1749502240796,-151.0,0.00018949,2]
[365156292,1749502240806,-151.0,0.00018949,2]
[365156293,1749502240815,-151.0,0.00018949,2]
[365156294,1749502240824,-151.0,0.00018949,2]
[365156295,1749502240833,-289.31187968,0.00018949,2]
[365156296,1749502240843,-300.0,0.00018949,2]
[365156297,1749502240853,-300.0,0.00018949,2]
[365156299,1749502240862,-300.0,0.00018949,2]
[365156300,1749502240871,-300.0,0.00018949,2]
[365156301,1749502240880,-300.0,0.00018949,2]
[365156302,1749502240890,-22500.82424102,0.0001896,2]
[365156303,1749502240899,-203.772328,0.00018974,2]
[365156304,1749502240908,-1163.41,0.00019,2]
[365156305,1749502240918,-203.772328,0.00019011,2]
[365156306,1749502240929,-300.0,0.00019022,2]
[365156307,1749502240938,-500.0,0.00019023,2]
[365156308,1749502240948,-200.0,0.00019023,2]
[365156309,1749502240958,-395.07,0.0001903,2]
[365156310,1749502240967,-150.0,0.00019032,2]
[365156311,1749502240977,-1000.0,0.00019035,2]
[365156312,1749502240987,-1321.68883533,0.00019046,2]
[365156313,1749502240996,-203.772328,0.00019048,2]
[365156314,1749502241005,-395.07,0.0001905,2]
[365156315,1749502241014,-200.15,0.00019068,2]
[365156316,1749502241023,-467.537295,0.00019072,2]
[365156317,1749502241032,-161.63188426,0.00019073,2]
[365156318,1749502241041,-173.0172479,0.00019077,2]
[365156319,1749502241050,-249.05363622,0.00019077,2]
[365156320,1749502241059,-338.98365021,0.00019077,2]
[365156321,1749502241068,-554.47207091,0.00019077,2]
[365156322,1749502241077,-500.0,0.00019077,2]
[365156323,1749502241086,-500.0,0.00019077,2]
[365156324,1749502241095,-500.0,0.00019077,2]
[365156325,1749502241104,-500.0,0.00019077,2]
[365156326,1749502241114,-572.20910942,0.00019077,2]
[365156327,1749502241123,-500.0,0.00019077,2]
[365156328,1749502241132,-500.0,0.00019077,2]
[365156329,1749502241142,-55811.667,0.00019078,2]
[365156330,1749502241152,-150.0,0.00019078,2]
[365156331,1749502241163,-204.0,0.0001908,4]
[365156332,1749502241173,-300.0,0.00019083,2]
[365156333,1749502241184,-203.772328,0.00019085,2]
[365156334,1749502241194,-1321.68883533,0.00019086,2]
[365156335,1749502241203,-1599.239,0.00019098,2]
[365156336,1749502241212,-175.024,0.00019098,2]
[365156337,1749502241221,-150.0,0.00019098,2]
[365156338,1749502241231,-395.07,0.000191,2]
[365156339,1749502241240,-150.0,0.00019104,2]
[365156340,1749502241252,-203.772328,0.00019122,2]
[365156341,1749502241262,-1321.68883533,0.00019126,2]
[365156342,1749502241272,-3690.85117453,0.00019146,3]
[365156343,1749502241281,-54653.26630903,0.00019146,3]
[365156344,1749502241635,-239.39685384,0.00018095,2]
[365156345,1749502241645,-481.08220525,0.00018095,2]
[365156346,1749502241657,-18.91779475,0.00018095,2]
[365156347,1749502241665,-400.85459496,0.00018095,2]
[365156348,1749502241677,-99.14540504,0.00018095,2]
[365156349,1749502241686,-1557.43979884,0.00019146,3]
[365156350,1749502241697,-3991.33602761,0.00019146,3]
[365156351,1749502241708,-16723.50798183,0.00019146,3]
[365156352,1749502241723,-367.62170312,0.00019146,3]
[365156353,1749502241734,-27640.34992798,0.00019146,3]
[365156354,1749502241745,-3594.81885109,0.00019146,3]
[365156355,1749502241756,-2300.0,0.00019146,3]
[365156356,1749502241786,-470.94268971,0.00018095,2]
[365156357,1749502241796,-915020.90277589,0.00019146,3]
[365156358,1749502241805,-3085.0139796,0.00019146,2]
[365156359,1749502241814,-12732.9653456,0.00019146,2]
[365156360,1749502241824,-95599.9924999,0.00019146,2]
[365156361,1749502241833,-93545.235271,0.00019146,2]
[365156362,1749502241842,-2228.657298,0.00019146,2]
[365156363,1749502241852,-200.15,0.00019149,2]
[365156364,1749502241861,-152.22,0.00019155,2]
[365156365,1749502241871,-3361.4191489,0.00019159,2]
[365156366,1749502241880,-13873.7891685,0.00019159,2]
[365156367,1749502241890,-104395.6621666,0.00019159,2]
[365156368,1749502241899,-102151.8571631,0.00019159,2]
[365156369,1749502241908,-2441.0365274,0.00019159,2]
[365156370,1749502241918,-203.772328,0.00019159,2]
[365156371,1749502241927,-3637.8243181,0.00019165,2]
[365156372,1749502241937,-15014.6129914,0.00019165,2]
[365156373,1749502241946,-113191.3318333,0.00019165,2]
[365156374,1749502241956,-110758.4790552,0.00019165,2]
[365156375,1749502241967,-2653.4157568,0.00019165,2]
[365156376,1749502241976,-1321.68883533,0.00019166,2]
[365156377,1749502241986,-152.22,0.00019168,2]
[365156378,1749502241996,-833.29909032,0.00019172,3]
[365156379,1749502242006,-500.0,0.00019173,2]
[365156380,1749502242016,-500.0,0.00019173,2]
[365156381,1749502242026,-161.21841605,0.00019173,2]
[365156382,1749502242035,-500.0,0.00019173,2]
[365156383,1749502242045,-500.0,0.00019173,2]
[365156384,1749502242055,-187.12199399,0.00019173,2]
[365156385,1749502242065,-500.0,0.00019173,2]
[365156386,1749502242074,-500.0,0.00019173,2]
[365156387,1749502242084,-500.0,0.00019173,2]
[365156388,1749502242094,-500.0,0.00019173,2]